[Event "Early-Titled-Tuesday-Blitz-March-05-2024"]
[Site "Chess.com"]
[Date "2024.03.05"]
[Round "10"]
[White "campochess"]
[Black "FMStan15"]
[Result "1-0"]
[WhiteElo "2233"]
[BlackElo "2093"]
[TimeControl "180+1"]
[EndTime "9:58:36 PST"]
[Termination "campochess won on time"]

1. e4 {[%clk 0:02:59.8]} 1... e6 {[%clk 0:02:47.5]} 2. Qe2 {[%clk 0:02:58.4]}
2... c5 {[%clk 0:02:46.7]} 3. Nf3 {[%clk 0:02:56.4]} 3... Nc6 {[%clk 0:02:47]}
4. c3 {[%clk 0:02:56.3]} 4... Nge7 {[%clk 0:02:44.9]} 5. d4 {[%clk 0:02:55.8]}
5... cxd4 {[%clk 0:02:44]} 6. cxd4 {[%clk 0:02:54.7]} 6... d5 {[%clk 0:02:44.2]}
7. e5 {[%clk 0:02:54.1]} 7... Nf5 {[%clk 0:02:42.6]} 8. Be3 {[%clk 0:02:45.9]}
8... Qb6 {[%clk 0:02:41.2]} 9. Qb5 {[%clk 0:02:36.7]} 9... Nxe3 {[%clk
0:02:35.6]} 10. fxe3 {[%clk 0:02:28.8]} 10... Qxb5 {[%clk 0:02:32.1]} 11. Bxb5
{[%clk 0:02:27.4]} 11... Bd7 {[%clk 0:02:32.4]} 12. Nc3 {[%clk 0:02:26.2]} 12...
Bb4 {[%clk 0:02:29.7]} 13. O-O {[%clk 0:02:22.6]} 13... Bxc3 {[%clk 0:02:29.8]}
14. Bxc6 {[%clk 0:02:21.1]} 14... Bxc6 {[%clk 0:02:27.4]} 15. bxc3 {[%clk
0:02:20.8]} 15... Bb5 {[%clk 0:02:22.9]} 16. Rfc1 {[%clk 0:02:19.7]} 16... Ke7
{[%clk 0:02:16.4]} 17. Kf2 {[%clk 0:02:19.3]} 17... Rhc8 {[%clk 0:02:14.8]} 18.
Ke1 {[%clk 0:02:17.4]} 18... f6 {[%clk 0:02:12.4]} 19. exf6+ {[%clk 0:02:16.1]}
19... gxf6 {[%clk 0:02:11.7]} 20. Kd2 {[%clk 0:02:16.2]} 20... Kd6 {[%clk
0:02:11.8]} 21. a4 {[%clk 0:02:15.8]} 21... Ba6 {[%clk 0:02:11.4]} 22. Ra3
{[%clk 0:02:09.9]} 22... e5 {[%clk 0:02:11.4]} 23. Nh4 {[%clk 0:01:55.9]} 23...
Rg8 {[%clk 0:02:05.9]} 24. g3 {[%clk 0:01:53.7]} 24... e4 {[%clk 0:01:57.1]} 25.
Ng2 {[%clk 0:01:51.5]} 25... h5 {[%clk 0:01:49.9]} 26. Nh4 {[%clk 0:01:48.4]}
26... Ke6 {[%clk 0:01:39.4]} 27. Ra2 {[%clk 0:01:41.4]} 27... Rac8 {[%clk
0:01:37.8]} 28. Rb2 {[%clk 0:01:39.4]} 28... Rc4 {[%clk 0:01:36.4]} 29. Ra2
{[%clk 0:01:36]} 29... Rgc8 {[%clk 0:01:32.9]} 30. Ng6 {[%clk 0:01:29.4]} 30...
R4c7 {[%clk 0:01:00.3]} 31. Nf4+ {[%clk 0:01:28.1]} 31... Kd6 {[%clk 0:01:00.2]}
32. Nxh5 {[%clk 0:01:07.4]} 32... Rh8 {[%clk 0:00:56.5]} 33. g4 {[%clk
0:01:07.4]} 33... f5 {[%clk 0:00:55.2]} 34. h3 {[%clk 0:01:05.3]} 34... fxg4
{[%clk 0:00:54.8]} 35. hxg4 {[%clk 0:01:05.3]} 35... Rf7 {[%clk 0:00:54.1]} 36.
Kc2 {[%clk 0:00:59.2]} 36... Rf2+ {[%clk 0:00:42.4]} 37. Kb1 {[%clk 0:00:58.8]}
37... Rf3 {[%clk 0:00:41.2]} 38. Re1 {[%clk 0:00:53.2]} 38... Rg8 {[%clk
0:00:40.3]} 39. Rg2 {[%clk 0:00:50.6]} 39... Bc4 {[%clk 0:00:34.7]} 40. g5
{[%clk 0:00:49]} 40... Bb3 {[%clk 0:00:32.3]} 41. a5 {[%clk 0:00:46.7]} 41...
Ba4 {[%clk 0:00:32.2]} 42. Nf4 {[%clk 0:00:45.1]} 42... Bd7 {[%clk 0:00:26.3]}
43. g6 {[%clk 0:00:45]} 43... Bf5 {[%clk 0:00:22.7]} 44. Rg5 {[%clk 0:00:44.2]}
44... Bd7 {[%clk 0:00:18.6]} 45. g7 {[%clk 0:00:38.8]} 45... Rf2 {[%clk
0:00:17]} 46. Rxd5+ {[%clk 0:00:38.1]} 46... Ke7 {[%clk 0:00:15.9]} 47. Rg5
{[%clk 0:00:36.6]} 47... Be6 {[%clk 0:00:12.8]} 48. Re5 {[%clk 0:00:35.4]} 48...
Kf7 {[%clk 0:00:08.9]} 49. Rxe6 {[%clk 0:00:35.1]} 49... Rxg7 {[%clk 0:00:09.4]}
50. Rxe4 {[%clk 0:00:34]} 50... Rh7 {[%clk 0:00:07.6]} 51. Re2 {[%clk
0:00:32.5]} 51... Rf1+ {[%clk 0:00:06.9]} 52. Kc2 {[%clk 0:00:31.4]} 52... Rhh1
{[%clk 0:00:07]} 53. Kd3 {[%clk 0:00:30.4]} 53... Rd1+ {[%clk 0:00:06.4]} 54.
Kc4 {[%clk 0:00:30.4]} 54... Ra1 {[%clk 0:00:06.2]} 55. Re5 {[%clk 0:00:30.1]}
55... Ra4+ {[%clk 0:00:05.3]} 56. Kd3 {[%clk 0:00:30.1]} 56... Ra3 {[%clk
0:00:04.2]} 57. Rc2 {[%clk 0:00:28.6]} 57... Rh6 {[%clk 0:00:01.6]} 58. Ke4
{[%clk 0:00:28]} 58... Kf6 {[%clk 0:00:01.4]} 59. Re6+ {[%clk 0:00:22.5]} 59...
Kg5 {[%clk 0:00:01.3]} 60. Rg2+ {[%clk 0:00:20.5]} 1-0

[Event "Early-Titled-Tuesday-Blitz-March-05-2024"]
[Site "Chess.com"]
[Date "2024.03.05"]
[Round "10"]
[White "RianKapriaga"]
[Black "balack95"]
[Result "0-1"]
[WhiteElo "2291"]
[BlackElo "2457"]
[TimeControl "180+1"]
[EndTime "9:58:38 PST"]
[Termination "balack95 won on time"]

1. d4 {[%clk 0:03:00.9]} 1... Nf6 {[%clk 0:03:00]} 2. e3 {[%clk 0:03:01]} 2...
c5 {[%clk 0:02:54.4]} 3. c3 {[%clk 0:02:59.9]} 3... e6 {[%clk 0:02:53.9]} 4. Nd2
{[%clk 0:02:58.3]} 4... d5 {[%clk 0:02:54.2]} 5. Ngf3 {[%clk 0:02:57.2]} 5...
Be7 {[%clk 0:02:54.2]} 6. dxc5 {[%clk 0:02:55.8]} 6... Bxc5 {[%clk 0:02:46.1]}
7. b4 {[%clk 0:02:54.4]} 7... Bb6 {[%clk 0:02:42.2]} 8. Bd3 {[%clk 0:02:53.4]}
8... O-O {[%clk 0:02:42.7]} 9. Bb2 {[%clk 0:02:52]} 9... a5 {[%clk 0:02:43.3]}
10. a3 {[%clk 0:02:50]} 10... Bd7 {[%clk 0:02:40.7]} 11. O-O {[%clk 0:02:45.3]}
11... axb4 {[%clk 0:02:41.1]} 12. cxb4 {[%clk 0:02:44.3]} 12... Ba4 {[%clk
0:02:41.6]} 13. Qe2 {[%clk 0:02:41.6]} 13... Nc6 {[%clk 0:02:38.7]} 14. Rac1
{[%clk 0:02:39.4]} 14... Qe7 {[%clk 0:02:37.5]} 15. Ng5 {[%clk 0:02:29.5]} 15...
e5 {[%clk 0:02:31]} 16. Bb1 {[%clk 0:02:20.6]} 16... h6 {[%clk 0:02:28.2]} 17.
Ngf3 {[%clk 0:02:19.3]} 17... e4 {[%clk 0:02:19.6]} 18. Nh4 {[%clk 0:02:12.3]}
18... Qe6 {[%clk 0:02:11.7]} 19. f3 {[%clk 0:01:29.8]} 19... exf3 {[%clk
0:02:03.5]} 20. Rxf3 {[%clk 0:01:28.3]} 20... Ng4 {[%clk 0:01:52.6]} 21. Nf1
{[%clk 0:01:26.6]} 21... d4 {[%clk 0:01:48]} 22. Nf5 {[%clk 0:01:19]} 22... Nce5
{[%clk 0:01:27.5]} 23. exd4 {[%clk 0:01:00.2]} 23... Nxf3+ {[%clk 0:01:27.2]}
24. Qxf3 {[%clk 0:00:59.7]} 24... Nf6 {[%clk 0:01:11.5]} 25. Qg3 {[%clk
0:00:52.1]} 25... Ne8 {[%clk 0:00:41]} 26. Rc5 {[%clk 0:00:36.9]} 26... Bxc5
{[%clk 0:00:20.9]} 27. dxc5 {[%clk 0:00:37.8]} 27... g5 {[%clk 0:00:21.3]} 28.
h4 {[%clk 0:00:32.9]} 28... Ng7 {[%clk 0:00:16.4]} 29. Nxg7 {[%clk 0:00:29.5]}
29... Qb3 {[%clk 0:00:13]} 30. Qf2 {[%clk 0:00:19]} 30... f6 {[%clk 0:00:05.5]}
31. Nf5 {[%clk 0:00:18.3]} 31... Rae8 {[%clk 0:00:04.6]} 32. Nxh6+ {[%clk
0:00:17.6]} 32... Kg7 {[%clk 0:00:04.4]} 33. Nf5+ {[%clk 0:00:17.3]} 33... Kg8
{[%clk 0:00:03.4]} 34. Nh6+ {[%clk 0:00:16]} 34... Kg7 {[%clk 0:00:03.8]} 35.
hxg5 {[%clk 0:00:16]} 35... Qc4 {[%clk 0:00:01.9]} 36. Nf5+ {[%clk 0:00:15.1]}
36... Kg8 {[%clk 0:00:01.1]} 37. gxf6 {[%clk 0:00:15.2]} 37... Kf7 {[%clk
0:00:01.7]} 38. Nh6+ {[%clk 0:00:14.5]} 38... Ke6 {[%clk 0:00:02.3]} 39. Qe3+
{[%clk 0:00:12.6]} 39... Kd7 {[%clk 0:00:02.7]} 40. Qh3+ {[%clk 0:00:12]} 40...
Kc6 {[%clk 0:00:03.1]} 41. Qf3+ {[%clk 0:00:11]} 41... Kc7 {[%clk 0:00:03.7]}
42. f7 {[%clk 0:00:10.4]} 42... Rd8 {[%clk 0:00:02.5]} 43. Qg3+ {[%clk
0:00:09.2]} 43... Kc8 {[%clk 0:00:03.1]} 44. Bf5+ {[%clk 0:00:07.8]} 44... Bd7
{[%clk 0:00:03.7]} 45. Bxd7+ {[%clk 0:00:06.2]} 45... Rxd7 {[%clk 0:00:04.6]}
46. Bg7 {[%clk 0:00:03.9]} 46... Rfxf7 {[%clk 0:00:05.2]} 47. Nxf7 {[%clk
0:00:03.2]} 47... Rxf7 {[%clk 0:00:06.1]} 48. Be5 {[%clk 0:00:03.1]} 48... Kd7
{[%clk 0:00:06.4]} 0-1

[Event "Early-Titled-Tuesday-Blitz-March-05-2024"]
[Site "Chess.com"]
[Date "2024.03.05"]
[Round "10"]
[White "RantomOpening"]
[Black "BardArtem"]
[Result "0-1"]
[WhiteElo "2581"]
[BlackElo "2736"]
[TimeControl "180+1"]
[EndTime "9:58:39 PST"]
[Termination "BardArtem won by checkmate"]

1. c4 {[%clk 0:03:00.5]} 1... e6 {[%clk 0:02:59.2]} 2. Nf3 {[%clk 0:02:59.9]}
2... d5 {[%clk 0:03:00.1]} 3. e3 {[%clk 0:02:59.3]} 3... Nf6 {[%clk 0:03:00.8]}
4. Nc3 {[%clk 0:02:59.4]} 4... c5 {[%clk 0:02:59.6]} 5. cxd5 {[%clk 0:02:59.6]}
5... Nxd5 {[%clk 0:02:59.5]} 6. d4 {[%clk 0:02:57.5]} 6... Nc6 {[%clk
0:02:56.9]} 7. Bb5 {[%clk 0:02:55.9]} 7... Qa5 {[%clk 0:02:41.2]} 8. Bxc6+
{[%clk 0:02:40.5]} 8... bxc6 {[%clk 0:02:40.7]} 9. Bd2 {[%clk 0:02:40.7]} 9...
Qa6 {[%clk 0:02:31.5]} 10. a3 {[%clk 0:02:24.2]} 10... cxd4 {[%clk 0:02:20.3]}
11. Nxd4 {[%clk 0:02:23.3]} 11... Nxc3 {[%clk 0:02:12]} 12. Bxc3 {[%clk
0:02:22.7]} 12... c5 {[%clk 0:02:10.4]} 13. Nf3 {[%clk 0:02:06.8]} 13... f6
{[%clk 0:01:58.6]} 14. Nd2 {[%clk 0:01:56.2]} 14... Bb7 {[%clk 0:01:48.4]} 15.
Qh5+ {[%clk 0:01:54.4]} 15... g6 {[%clk 0:01:47.2]} 16. Qg4 {[%clk 0:01:49]}
16... Be7 {[%clk 0:01:42]} 17. O-O-O {[%clk 0:01:39.3]} 17... Kf7 {[%clk
0:01:34.6]} 18. Ne4 {[%clk 0:01:21.8]} 18... Rad8 {[%clk 0:00:59.3]} 19. Qf4
{[%clk 0:01:20.8]} 19... e5 {[%clk 0:00:48.8]} 20. Qh4 {[%clk 0:01:12.6]} 20...
h5 {[%clk 0:00:34.8]} 21. Nd2 {[%clk 0:01:11.4]} 21... Rd3 {[%clk 0:00:28.2]}
22. Nb1 {[%clk 0:00:39.8]} 22... Rhd8 {[%clk 0:00:21]} 23. Qh3 {[%clk
0:00:30.1]} 23... Rxd1+ {[%clk 0:00:09.7]} 24. Rxd1 {[%clk 0:00:31]} 24... Rxd1+
{[%clk 0:00:10.4]} 25. Kxd1 {[%clk 0:00:31.9]} 25... Qd3+ {[%clk 0:00:11]} 26.
Nd2 {[%clk 0:00:29.9]} 26... Be4 {[%clk 0:00:07.8]} 27. f3 {[%clk 0:00:22.9]}
27... Bf5 {[%clk 0:00:04.6]} 28. g4 {[%clk 0:00:22.2]} 28... hxg4 {[%clk
0:00:04.1]} 29. fxg4 {[%clk 0:00:23.1]} 29... Be4 {[%clk 0:00:04.4]} 30. Qh7+
{[%clk 0:00:22.7]} 30... Ke6 {[%clk 0:00:05]} 31. Qg8+ {[%clk 0:00:22.7]} 31...
Kd7 {[%clk 0:00:05.6]} 32. Qb8 {[%clk 0:00:13.7]} 32... Qxe3 {[%clk 0:00:05]}
33. Qxa7+ {[%clk 0:00:14]} 33... Ke6 {[%clk 0:00:04.8]} 34. Qa6+ {[%clk
0:00:13.6]} 34... Bd6 {[%clk 0:00:04.3]} 35. Nxe4 {[%clk 0:00:08.7]} 35... Qxe4
{[%clk 0:00:05.2]} 36. Qe2 {[%clk 0:00:09.2]} 36... Qd5+ {[%clk 0:00:04.1]} 37.
Kc2 {[%clk 0:00:08.9]} 37... f5 {[%clk 0:00:04.1]} 38. gxf5+ {[%clk 0:00:08.8]}
38... gxf5 {[%clk 0:00:05]} 39. Qh5 {[%clk 0:00:08.3]} 39... Qe4+ {[%clk
0:00:05.2]} 40. Kb3 {[%clk 0:00:07.5]} 40... Qd5+ {[%clk 0:00:03.3]} 41. Kc2
{[%clk 0:00:07.5]} 41... Qe4+ {[%clk 0:00:03.8]} 42. Kc1 {[%clk 0:00:07.2]}
42... c4 {[%clk 0:00:03.6]} 43. Qe8+ {[%clk 0:00:06.8]} 43... Kf6 {[%clk
0:00:02.8]} 44. Qd8+ {[%clk 0:00:07.2]} 44... Be7 {[%clk 0:00:03.3]} 45. Qh8+
{[%clk 0:00:07.8]} 45... Ke6 {[%clk 0:00:03.8]} 46. Qc8+ {[%clk 0:00:07.1]}
46... Kf7 {[%clk 0:00:03.6]} 47. Bd2 {[%clk 0:00:01.4]} 47... Qh1+ {[%clk
0:00:03.6]} 48. Kc2 {[%clk 0:00:01.6]} 48... Qd5 {[%clk 0:00:04.5]} 49. Bc3
{[%clk 0:00:01.6]} 49... Qd3+ {[%clk 0:00:04.7]} 50. Kc1 {[%clk 0:00:01.9]}
50... Bg5+ {[%clk 0:00:05.6]} 51. Bd2 {[%clk 0:00:02.4]} 51... Bxd2+ {[%clk
0:00:06.1]} 52. Kd1 {[%clk 0:00:02.6]} 52... Bc3+ {[%clk 0:00:07]} 53. Kc1
{[%clk 0:00:03]} 53... Qd2+ {[%clk 0:00:07.9]} 54. Kb1 {[%clk 0:00:03.9]} 54...
Qxb2# {[%clk 0:00:08.8]} 0-1

[Event "Early-Titled-Tuesday-Blitz-March-05-2024"]
[Site "Chess.com"]
[Date "2024.03.05"]
[Round "10"]
[White "SlavenPastar"]
[Black "Herzog2012"]
[Result "0-1"]
[WhiteElo "2595"]
[BlackElo "2521"]
[TimeControl "180+1"]
[EndTime "9:58:42 PST"]
[Termination "Herzog2012 won by checkmate"]

1. b3 {[%clk 0:03:00.9]} 1... e5 {[%clk 0:02:59.8]} 2. Bb2 {[%clk 0:03:01.4]}
2... Nc6 {[%clk 0:03:00.2]} 3. Nf3 {[%clk 0:03:01.9]} 3... e4 {[%clk 0:02:59.1]}
4. Nd4 {[%clk 0:03:02.4]} 4... Nxd4 {[%clk 0:02:51.9]} 5. Bxd4 {[%clk
0:03:03.3]} 5... d5 {[%clk 0:02:52.2]} 6. e3 {[%clk 0:03:03.7]} 6... Nf6 {[%clk
0:02:50.2]} 7. c4 {[%clk 0:03:03.4]} 7... c6 {[%clk 0:02:49.2]} 8. Nc3 {[%clk
0:03:02.4]} 8... Be6 {[%clk 0:02:43.4]} 9. cxd5 {[%clk 0:03:02.1]} 9... cxd5
{[%clk 0:02:35.6]} 10. Bb5+ {[%clk 0:03:00.9]} 10... Nd7 {[%clk 0:02:09.5]} 11.
Qh5 {[%clk 0:02:51.7]} 11... a6 {[%clk 0:02:08.9]} 12. Bxd7+ {[%clk 0:02:44.8]}
12... Qxd7 {[%clk 0:02:07.7]} 13. O-O {[%clk 0:02:41.2]} 13... Bd6 {[%clk
0:01:53.1]} 14. Bxg7 {[%clk 0:02:32.2]} 14... Rg8 {[%clk 0:01:52.2]} 15. Bf6
{[%clk 0:02:20.4]} 15... Bh3 {[%clk 0:01:45.7]} 16. g3 {[%clk 0:02:13.4]} 16...
Bxf1 {[%clk 0:01:32.9]} 17. Rxf1 {[%clk 0:02:14.3]} 17... Qe6 {[%clk 0:00:56.3]}
18. Nxd5 {[%clk 0:02:11.7]} 18... Rg6 {[%clk 0:00:39.8]} 19. Bd4 {[%clk
0:02:05.6]} 19... Rc8 {[%clk 0:00:36.8]} 20. Nb6 {[%clk 0:01:49.2]} 20... Rh6
{[%clk 0:00:24.3]} 21. Qxh6 {[%clk 0:01:20.6]} 21... Qxh6 {[%clk 0:00:23.3]} 22.
Nxc8 {[%clk 0:01:21.2]} 22... Bb4 {[%clk 0:00:21.8]} 23. Nb6 {[%clk 0:01:03.9]}
23... Qc6 {[%clk 0:00:18.2]} 24. Nc4 {[%clk 0:00:58.4]} 24... b5 {[%clk
0:00:17.6]} 25. Ne5 {[%clk 0:00:51.3]} 25... Qc2 {[%clk 0:00:17.6]} 26. f3
{[%clk 0:00:43.7]} 26... Qxa2 {[%clk 0:00:16.6]} 27. fxe4 {[%clk 0:00:43.1]}
27... Qxb3 {[%clk 0:00:16.8]} 28. Rxf7 {[%clk 0:00:38.4]} 28... Bxd2 {[%clk
0:00:15.1]} 29. Rf3 {[%clk 0:00:29]} 29... Qd1+ {[%clk 0:00:11.8]} 30. Kg2
{[%clk 0:00:27.1]} 30... b4 {[%clk 0:00:10.7]} 31. Bc5 {[%clk 0:00:24]} 31...
Kd8 {[%clk 0:00:07]} 32. Rf7 {[%clk 0:00:17.9]} 32... Qe2+ {[%clk 0:00:04]} 33.
Rf2 {[%clk 0:00:17.6]} 33... Qh5 {[%clk 0:00:04.1]} 34. Bd6 {[%clk 0:00:16]}
34... Kc8 {[%clk 0:00:01.9]} 35. Rf8+ {[%clk 0:00:15.1]} 35... Kb7 {[%clk
0:00:02.1]} 36. Rf5 {[%clk 0:00:14]} 36... Qe2+ {[%clk 0:00:01.5]} 37. Rf2
{[%clk 0:00:13.8]} 37... Qxe3 {[%clk 0:00:02.1]} 38. Rf7+ {[%clk 0:00:12.8]}
38... Ka8 {[%clk 0:00:01.8]} 39. Rf8+ {[%clk 0:00:09.8]} 39... Ka7 {[%clk
0:00:02.5]} 40. Rf7+ {[%clk 0:00:10.7]} 40... Ka8 {[%clk 0:00:02.3]} 41. Rf4
{[%clk 0:00:09.9]} 41... Qe2+ {[%clk 0:00:02.2]} 42. Rf2 {[%clk 0:00:09.9]}
42... Qb5 {[%clk 0:00:02.7]} 43. Rxd2 {[%clk 0:00:08.4]} 43... b3 {[%clk
0:00:02.7]} 44. Ba3 {[%clk 0:00:06]} 44... Qxe5 {[%clk 0:00:02.7]} 45. Rd8+
{[%clk 0:00:04.6]} 45... Kb7 {[%clk 0:00:02.5]} 46. Bd6 {[%clk 0:00:04.8]} 46...
Qxe4+ {[%clk 0:00:02.5]} 47. Kh3 {[%clk 0:00:05.6]} 47... Kc6 {[%clk 0:00:02.5]}
48. Bf4 {[%clk 0:00:05.2]} 48... b2 {[%clk 0:00:02.4]} 49. Rc8+ {[%clk
0:00:05.6]} 49... Kd7 {[%clk 0:00:02.7]} 50. Rb8 {[%clk 0:00:06.5]} 50... b1=Q
{[%clk 0:00:02.8]} 51. Ra8 {[%clk 0:00:05.5]} 51... Qxa8 {[%clk 0:00:02.4]} 52.
Kg4 {[%clk 0:00:05.6]} 52... Qae4 {[%clk 0:00:03.1]} 53. h4 {[%clk 0:00:06.5]}
53... Qd1+ {[%clk 0:00:03.1]} 54. Kg5 {[%clk 0:00:07]} 54... Qg6# {[%clk
0:00:03.5]} 0-1

[Event "Early-Titled-Tuesday-Blitz-March-05-2024"]
[Site "Chess.com"]
[Date "2024.03.05"]
[Round "10"]
[White "Louis-Paulsen-Fan"]
[Black "The_Straightforward_Rook"]
[Result "1/2-1/2"]
[WhiteElo "2252"]
[BlackElo "2465"]
[TimeControl "180+1"]
[EndTime "9:58:44 PST"]
[Termination "Game drawn - timeout vs insufficient material"]

1. d4 {[%clk 0:03:00.9]} 1... d5 {[%clk 0:02:57.6]} 2. Nf3 {[%clk 0:03:01.2]}
2... Nf6 {[%clk 0:02:57.3]} 3. c4 {[%clk 0:03:01.5]} 3... c6 {[%clk 0:02:57.1]}
4. Nc3 {[%clk 0:03:01.7]} 4... e6 {[%clk 0:02:56.5]} 5. Bg5 {[%clk 0:03:01.6]}
5... h6 {[%clk 0:02:56.7]} 6. Bh4 {[%clk 0:03:00.8]} 6... dxc4 {[%clk 0:02:56]}
7. e4 {[%clk 0:02:50]} 7... g5 {[%clk 0:02:55.6]} 8. Bg3 {[%clk 0:02:50.3]} 8...
b5 {[%clk 0:02:56.3]} 9. Be2 {[%clk 0:02:49.7]} 9... Bg7 {[%clk 0:02:55.9]} 10.
a3 {[%clk 0:02:37.8]} 10... Bb7 {[%clk 0:02:51.8]} 11. Ne5 {[%clk 0:02:37.2]}
11... Nbd7 {[%clk 0:02:47.4]} 12. O-O {[%clk 0:02:28.7]} 12... Qb6 {[%clk
0:02:37.8]} 13. d5 {[%clk 0:02:11.4]} 13... cxd5 {[%clk 0:02:32.8]} 14. exd5
{[%clk 0:02:09.3]} 14... Nxd5 {[%clk 0:02:29]} 15. Nxd7 {[%clk 0:02:03.7]} 15...
Kxd7 {[%clk 0:02:29.9]} 16. Bf3 {[%clk 0:01:58.5]} 16... Bxc3 {[%clk 0:02:04.3]}
17. bxc3 {[%clk 0:01:55.2]} 17... Ke7 {[%clk 0:02:02.3]} 18. Be5 {[%clk
0:01:40.3]} 18... Rhd8 {[%clk 0:02:00.5]} 19. Bd4 {[%clk 0:01:38]} 19... Qc7
{[%clk 0:01:57.9]} 20. Qc2 {[%clk 0:01:25.5]} 20... f5 {[%clk 0:01:52.3]} 21.
Rfe1 {[%clk 0:01:21.4]} 21... Kf7 {[%clk 0:01:51.1]} 22. Bh5+ {[%clk 0:01:16.3]}
22... Kg8 {[%clk 0:01:32.3]} 23. Rxe6 {[%clk 0:01:15.5]} 23... Nf4 {[%clk
0:01:31.8]} 24. Qxf5 {[%clk 0:01:00.9]} 24... Rxd4 {[%clk 0:01:27.1]} 25. cxd4
{[%clk 0:00:50.6]} 25... Nxe6 {[%clk 0:01:24.4]} 26. Qxe6+ {[%clk 0:00:44.9]}
26... Kg7 {[%clk 0:01:22.8]} 27. Qg6+ {[%clk 0:00:43.2]} 27... Kf8 {[%clk
0:01:22.3]} 28. Qxh6+ {[%clk 0:00:42.3]} 28... Kg8 {[%clk 0:01:22.9]} 29. Qxg5+
{[%clk 0:00:41.5]} 29... Kh8 {[%clk 0:01:21.4]} 30. Re1 {[%clk 0:00:35.5]} 30...
Rg8 {[%clk 0:01:19.1]} 31. Qh6+ {[%clk 0:00:32.7]} 31... Qh7 {[%clk 0:01:18.7]}
32. Qxh7+ {[%clk 0:00:33]} 32... Kxh7 {[%clk 0:01:19.6]} 33. Re7+ {[%clk
0:00:32.7]} 33... Rg7 {[%clk 0:01:20.2]} 34. Rxg7+ {[%clk 0:00:28]} 34... Kxg7
{[%clk 0:01:21.1]} 35. Kf1 {[%clk 0:00:25.2]} 35... c3 {[%clk 0:01:12]} 36. Ke1
{[%clk 0:00:20.6]} 36... Bxg2 {[%clk 0:01:07.4]} 37. Be8 {[%clk 0:00:20.6]}
37... a6 {[%clk 0:01:04.8]} 38. Kd1 {[%clk 0:00:19.4]} 38... Be4 {[%clk
0:01:04.8]} 39. h4 {[%clk 0:00:14.6]} 39... Bd3 {[%clk 0:01:04.9]} 40. Kc1
{[%clk 0:00:13.6]} 40... a5 {[%clk 0:01:05.3]} 41. Bxb5 {[%clk 0:00:05.9]} 41...
Bxb5 {[%clk 0:01:06.2]} 42. Kc2 {[%clk 0:00:06.4]} 42... Ba4+ {[%clk 0:00:56.2]}
43. Kxc3 {[%clk 0:00:06.7]} 43... Bd1 {[%clk 0:00:56.9]} 44. Kc4 {[%clk
0:00:05.2]} 44... a4 {[%clk 0:00:56.8]} 45. d5 {[%clk 0:00:05.3]} 45... Bb3+
{[%clk 0:00:56.9]} 46. Kc5 {[%clk 0:00:04.7]} 46... Kf7 {[%clk 0:00:55.6]} 47.
Kc6 {[%clk 0:00:04.1]} 47... Ke8 {[%clk 0:00:52.7]} 48. d6 {[%clk 0:00:03]}
48... Be6 {[%clk 0:00:51.9]} 49. h5 {[%clk 0:00:02.2]} 49... Kd8 {[%clk
0:00:50.6]} 50. h6 {[%clk 0:00:01.9]} 50... Bf5 {[%clk 0:00:50.7]} 51. Kd5
{[%clk 0:00:02.1]} 51... Kd7 {[%clk 0:00:50.3]} 52. Ke5 {[%clk 0:00:02.4]} 52...
Bc2 {[%clk 0:00:49.5]} 53. f4 {[%clk 0:00:03.3]} 53... Bh7 {[%clk 0:00:49]} 54.
f5 {[%clk 0:00:03.8]} 54... Ke8 {[%clk 0:00:42.9]} 55. f6 {[%clk 0:00:04.1]}
55... Bg6 {[%clk 0:00:42.5]} 56. Kd5 {[%clk 0:00:03]} 56... Kd7 {[%clk
0:00:42.7]} 57. Kc5 {[%clk 0:00:03.3]} 57... Ke6 {[%clk 0:00:39.9]} 58. Kc6
{[%clk 0:00:03.6]} 58... Be8+ {[%clk 0:00:38.9]} 59. Kc7 {[%clk 0:00:03.8]}
59... Kxf6 {[%clk 0:00:35]} 60. d7 {[%clk 0:00:03.4]} 60... Bxd7 {[%clk
0:00:35.8]} 61. Kxd7 {[%clk 0:00:03.8]} 61... Kg6 {[%clk 0:00:36.7]} 62. Kc6
{[%clk 0:00:04.3]} 62... Kxh6 {[%clk 0:00:37.6]} 63. Kb5 {[%clk 0:00:05]} 63...
Kg5 {[%clk 0:00:38.5]} 64. Kxa4 {[%clk 0:00:05.7]} 64... Kf4 {[%clk 0:00:39.4]}
65. Kb5 {[%clk 0:00:06]} 65... Ke4 {[%clk 0:00:40.3]} 66. a4 {[%clk 0:00:06.6]}
66... Kd4 {[%clk 0:00:41.2]} 67. a5 {[%clk 0:00:06.9]} 67... Kd5 {[%clk
0:00:42.1]} 1/2-1/2